bitfinex-derivatives/quotes_ETHF0:USTF0_20220103
["timestamp","ask_amount","ask_price","bid_price","bid_amount"]
[1641190397450,2.00479,3814.8,3814.0,0.6247]
[1641190398750,2.00479,3814.8,3813.9,2.00479]
[1641190399351,0.128157,3814.7,3813.9,2.00479]
[1641190401755,1.4999,3814.2,3813.9,2.00479]
[1641190401951,1.4999,3814.0,3812.9,32.74749]
[1641190402152,1.622256,3814.0,3812.9,2.00479]
[1641190402352,0.122356,3814.0,3812.9,2.00479]
[1641190402653,1.4999,3813.9,3812.9,2.00479]
[1641190402854,2.2151,3813.9,3812.9,2.00479]
[1641190403053,0.7152,3813.9,3812.3,2.49046974]
[1641190403452,2.00479,3813.2,3812.3,4.49525974]
[1641190404055,2.00479,3813.2,3812.5,1.66733476]
[1641190406755,2.132947,3813.2,3812.5,1.66733476]
[1641190411663,2.132947,3813.2,3812.3,3.31528404]
[1641190413364,3.632847,3813.2,3812.0,0.88377358]
[1641190413563,2.00479,3812.6,3812.0,0.88377358]
[1641190413762,2.82199,3812.6,3812.0,0.88377358]
[1641190414762,2.82199,3812.6,3811.9,1.57686358]
[1641190425474,2.82199,3812.6,3811.9,2.75683928]
[1641190426277,2.82199,3812.6,3812.0,1.1799757]
[1641190428279,2.82199,3812.6,3811.9,2.75683928]
[1641190429082,2.82199,3812.6,3811.9,1.57686358]
[1641190429481,0.8172,3812.6,3811.8,1.1799757]
[1641190429681,0.5907,3812.7,3811.8,1.1799757]
[1641190430081,2.00479,3812.5,3811.8,1.1799757]
[1641190430285,0.128157,3812.4,3811.8,1.1799757]
[1641190430984,0.128157,3812.4,3812.0,1.1799757]
[1641190435385,0.128157,3812.4,3812.1,1.1799757]
[1641190435585,0.128157,3812.4,3812.2,0.229991]
[1641190436387,0.128157,3812.4,3812.1,1.1799757]
[1641190437588,0.128157,3812.4,3812.2,0.229991]
[1641190437787,0.128157,3812.4,3812.1,1.1799757]
[1641190439987,0.128157,3812.4,3812.2,1.1799757]
[1641190441189,0.128157,3812.4,3812.3,1.4099667]
[1641190441589,0.128157,3812.4,3812.3,1.1799757]
[1641190442291,2.00479,3812.5,3812.3,1.4099667]
[1641190442592,2.00479,3812.5,3812.2,1.1799757]
[1641190443092,2.00479,3812.5,3812.3,0.229991]
[1641190443689,2.00479,3812.5,3812.3,1.4099667]
[1641190444093,2.00479,3812.5,3812.3,1.1799757]
[1641190444793,2.00479,3812.5,3812.4,1.1799757]
[1641190446891,2.00479,3812.5,3812.4,1.4099667]
[1641190447092,2.00479,3812.5,3812.4,1.1799757]
[1641190447494,2.00479,3812.5,3812.3,1.1799757]
[1641190448297,2.00479,3812.5,3812.2,1.1799757]
[1641190448696,2.00479,3812.5,3812.3,0.229991]
[1641190449097,2.00479,3812.5,3812.2,1.1799757]
[1641190449398,2.00479,3812.5,3812.4,0.88869144]
[1641190450396,2.00479,3812.5,3812.2,1.1799757]
[1641190451304,2.00479,3812.5,3812.3,1.1799757]
[1641190452105,2.00479,3812.5,3812.2,1.1799757]
[1641190452509,2.00479,3812.5,3812.3,0.229991]
[1641190452706,2.00479,3812.5,3812.2,1.1799757]
[1641190453906,2.00479,3812.5,3811.9,1.13017963]
[1641190453907,2.00479,3812.5,3812.3,1.1799757]
[1641190454706,2.00479,3812.5,3812.3,1.4099667]
[1641190454907,2.00479,3812.5,3812.3,1.1799757]
[1641190456710,2.00479,3812.5,3812.3,1.4099667]
[1641190458011,2.00479,3812.5,3812.3,1.1799757]
[1641190458211,2.00479,3812.5,3812.3,1.4099667]
[1641190459413,2.00479,3812.5,3812.3,1.1799757]
[1641190461115,2.00479,3812.5,3812.4,0.88870322]
[1641190461515,2.00479,3812.5,3812.4,1.11869422]
[1641190462015,2.00479,3812.5,3812.4,0.88870322]
[1641190462215,2.00479,3812.5,3812.2,1.1799757]
[1641190462815,0.128157,3812.6,3812.3,0.44058299]
[1641190463019,0.128157,3812.6,3812.4,0.229991]
[1641190463416,2.00479,3812.5,3812.4,0.229991]
[1641190464016,0.128157,3812.6,3812.3,0.076609]
[1641190464218,0.229991,3812.5,3812.3,0.53904969]
[1641190464418,0.128157,3812.6,3812.3,0.53904969]
[1641190465018,0.128157,3812.6,3811.8,1.76959192]
[1641190465019,0.128157,3812.6,3812.4,0.076609]
[1641190465621,2.00479,3812.5,3812.4,0.076609]
[1641190466521,2.234781,3812.5,3811.9,1.76959192]
[1641190466819,0.229991,3812.5,3811.9,1.76959192]
[1641190467020,0.128157,3812.6,3811.9,1.76959192]
[1641190467621,2.00479,3812.5,3811.9,1.76959192]
[1641190467821,2.00479,3812.5,3811.8,1.76959192]
[1641190468521,2.00479,3812.5,3811.9,1.76959192]
[1641190468722,2.00479,3812.5,3812.1,1.31059022]
[1641190469022,2.00479,3812.9,3812.1,1.31059022]
[1641190469224,2.00479,3812.9,3812.1,2.12189022]
[1641190469423,2.132947,3812.9,3812.1,2.12189022]
[1641190471729,2.132947,3812.9,3812.7,0.88949723]
[1641190471928,0.229991,3812.8,3812.7,0.88949723]
[1641190472330,2.132947,3812.9,3812.7,0.96610623]
[1641190472530,2.132947,3812.9,3812.7,0.88949723]
[1641190472730,2.132947,3812.9,3812.8,0.88949723]
[1641190472930,2.362938,3812.9,3812.8,0.88949723]
[1641190473434,3.24691737,3812.9,3812.1,1.31059022]
[1641190474035,3.01692637,3812.9,3812.1,1.31059022]
[1641190474833,3.01692637,3812.9,3812.6,1.18668225]
[1641190475033,0.229991,3812.8,3812.6,1.18668225]
[1641190479237,2.88876937,3812.9,3812.7,0.076609]
[1641190479439,1e-08,3812.9,3812.7,2.46649333]
[1641190480038,1e-08,3812.9,3812.8,0.40160208]
[1641190481141,1e-08,3812.9,3812.7,0.878209]
[1641190482240,1e-08,3812.9,3812.8,1.18661524]
[1641190483842,1e-08,3812.9,3812.7,2.06482424]
[1641190485144,0.22999101,3812.9,3812.7,1.98821524]
[1641190485647,0.88397937,3813.1,3812.8,0.076609]
[1641190486046,0.229991,3813.0,3812.8,0.076609]
[1641190486448,0.229991,3813.0,3812.7,1.98821524]
[1641190486648,0.128157,3812.9,3812.7,1.98821524]
[1641190487148,2.00479,3813.0,3812.8,0.076609]
[1641190488049,0.229991,3812.9,3812.7,1.98821524]
[1641190488248,2.00479,3813.0,3812.8,0.076609]
[1641190488848,2.00479,3813.0,3812.8,1.26322424]
[1641190490552,2.234781,3813.0,3812.8,1.18661524]
[1641190490852,2.00479,3813.0,3812.9,0.076609]
[1641190491253,2.00479,3813.0,3812.8,1.18661524]
[1641190491454,2.234781,3813.0,3812.8,1.18661524]
[1641190491653,2.234781,3813.0,3812.8,1.26322424]
[1641190491853,2.00479,3813.0,3812.8,1.26322424]
[1641190492856,2.234781,3813.0,3812.8,1.26322424]
[1641190493057,2.234781,3813.0,3812.8,1.18661524]
[1641190493858,2.00479,3813.0,3812.9,0.076609]
[1641190494058,2.00479,3813.0,3812.8,1.18661524]
[1641190494458,0.88397937,3813.2,3812.8,1.18661524]
[1641190494961,2.00479,3813.0,3812.8,1.18661524]
[1641190495159,2.234781,3813.0,3812.8,1.18661524]
[1641190495360,3.11876037,3813.0,3812.8,1.18661524]
[1641190495562,3.11876037,3813.0,3812.4,1.76959192]
[1641190496260,1.11397037,3813.0,3812.5,0.40160257]
[1641190496859,3.11876037,3813.0,3812.5,0.40160257]
[1641190497361,1.4999,3812.6,3812.0,2.21946439]
[1641190497663,1.4999,3812.1,3811.8,2.21946439]
[1641190497860,1.4999,3811.9,3811.8,2.21946439]
[1641190498063,1.4999,3811.9,3811.8,0.90766439]
[1641190498261,1.4999,3811.9,3811.5,5.50501295]
[1641190498661,1.4999,3811.6,3811.5,3.70219307]
[1641190498861,2.234781,3811.6,3811.5,3.70219307]
[1641190499261,2.234781,3811.6,3811.5,2.95928586]
[1641190499461,2.234781,3811.6,3811.0,0.74290721]
[1641190499661,1.4999,3811.5,3811.0,0.74290721]
[1641190499863,2.234781,3811.6,3811.0,0.74290721]
[1641190500166,0.128157,3811.4,3811.0,0.74290721]
[1641190500864,1.01440046,3811.4,3810.4,2.00479]
[1641190501665,1.01440046,3811.4,3810.4,0.69279]
[1641190502864,2.00479,3811.1,3810.4,0.69279]
[1641190505769,2.00479,3811.1,3810.7,0.88686215]
[1641190507973,2.00479,3811.1,3810.5,0.88686215]
[1641190509872,1.4999,3811.0,3810.5,0.88686215]
[1641190510072,2.00479,3811.1,3810.5,0.88686215]
[1641190510272,13.32479,3811.1,3810.5,0.88686215]
[1641190510473,1.4999,3810.9,3810.5,0.88686215]
[1641190510677,1.4999,3810.9,3810.0,0.31771207]
[1641190511074,2.00479,3810.4,3810.0,0.31771207]
[1641190511276,0.128157,3810.3,3810.0,0.31771207]
[1641190511476,0.128157,3810.3,3809.8,1.18272289]
[1641190511477,0.229991,3810.2,3809.8,1.18272289]
[1641190512277,0.128157,3810.3,3809.8,1.18272289]
[1641190513278,0.128157,3810.3,3809.6,1.18272289]
[1641190516780,0.128157,3810.3,3809.8,1.18272289]
[1641190517481,0.128157,3810.3,3809.6,0.48392289]
[1641190517682,2.00479,3810.4,3809.6,0.48392289]
[1641190517881,26.5728,3811.4,3809.6,0.48392289]
[1641190517882,26.5728,3811.4,3809.8,1.87828423]
[1641190518882,26.5728,3811.4,3809.9,0.37165376]
[1641190519083,28.57759,3811.4,3810.2,2.00479]
[1641190519283,2.00479,3811.1,3810.2,2.00479]
[1641190519985,0.128157,3811.0,3810.2,2.00479]
[1641190520386,2.00479,3811.1,3810.2,2.00479]
[1641190522085,0.128157,3811.0,3810.2,2.00479]
[1641190537001,0.128157,3811.0,3810.0,0.88513446]
[1641190537500,2.00479,3810.6,3810.0,0.88513446]
[1641190539007,2.00479,3810.6,3809.9,0.88513446]
[1641190540103,2.00479,3810.6,3810.1,0.88513446]
[1641190543105,2.00479,3810.6,3809.8,1.18017841]
[1641190543405,2.00479,3810.6,3809.7,2.81139802]
[1641190543406,2.00479,3810.6,3810.5,1.18017841]
[1641190543605,2.234781,3810.6,3810.5,1.18017841]
[1641190544409,2.00479,3810.6,3810.5,1.25678741]
[1641190544608,2.234781,3810.6,3810.5,1.18017841]
[1641190544808,2.00479,3810.6,3810.5,1.18017841]
[1641190545210,2.00479,3810.6,3810.0,0.38767841]
[1641190545909,0.128157,3811.0,3810.0,0.38767841]
[1641190546412,0.128157,3811.0,3810.3,2.00479]
[1641190547310,0.128157,3811.0,3810.8,0.88970858]
[1641190547511,0.229991,3810.9,3810.8,1.51360858]
[1641190548110,0.229991,3810.9,3810.8,0.6239]
[1641190548710,0.229991,3810.9,3810.0,1.7742116]
[1641190550212,0.229991,3810.9,3809.9,3.7790016]
[1641190550413,0.229991,3810.9,3809.9,2.4668016]
[1641190550612,2.00479,3810.4,3809.9,1.7742116]
[1641190551014,2.00479,3810.4,3809.8,1.7742116]
[1641190551815,2.00479,3810.4,3809.9,0.37167804]
[1641190553116,0.47731603,3811.0,3810.3,2.81100946]
[1641190553315,0.47731603,3811.0,3810.9,2.81084792]
[1641190553515,0.47731603,3811.0,3810.9,1.38745692]
[1641190553918,0.47731603,3811.0,3810.9,1.7590486]
[1641190554315,1.4666055,3811.6,3810.9,1.7590486]
[1641190554516,1.4666055,3811.6,3811.3,2.00479]
[1641190554717,2.56214297,3812.2,3811.4,0.076609]
[1641190554918,0.128157,3812.1,3811.4,0.076609]
[1641190557223,0.128157,3812.1,3811.4,1.26266167]
[1641190557424,0.128157,3812.1,3811.4,1.63423742]
[1641190558124,0.128157,3812.1,3811.4,1.26266167]
[1641190560830,0.128157,3812.1,3811.4,0.076609]
[1641190565337,0.128157,3812.0,3811.4,0.076609]
[1641190565634,0.128157,3812.0,3811.4,0.44818059]
[1641190566134,0.128157,3812.0,3811.4,0.076609]
[1641190569742,0.128157,3812.0,3811.4,1.26266167]
[1641190571443,0.128157,3812.0,3811.4,0.076609]
[1641190573848,0.128157,3812.0,3811.5,0.88812372]
[1641190575851,0.128157,3812.0,3811.4,0.88812372]
[1641190576652,0.128157,3812.0,3811.3,2.89291372]
[1641190576851,0.914157,3812.0,3811.3,2.89291372]
[1641190577051,0.914157,3812.0,3811.3,0.88812372]
[1641190577653,1.79690634,3812.0,3811.2,0.88812372]
[1641190578455,1.79690634,3812.0,3811.0,1.58091372]
[1641190578655,0.914157,3812.0,3811.0,1.58091372]
[1641190578855,2.00479,3811.6,3811.0,1.58091372]
[1641190581055,2.00479,3811.6,3810.8,1.18605267]
[1641190581856,2.00479,3811.6,3810.5,25.62655267]
[1641190582057,2.00479,3811.6,3810.6,1.1849286]
[1641190582256,2.00479,3811.6,3810.6,1.55659291]
[1641190582656,2.00479,3811.6,3810.6,1.1849286]
[1641190584855,2.00479,3811.2,3810.6,1.1849286]
[1641190585257,0.128157,3811.1,3810.6,1.1849286]
[1641190586560,0.128157,3811.1,3810.4,3.18867589]
[1641190587063,0.128157,3811.1,3810.5,0.37166212]
[1641190587764,2.00479,3811.2,3810.5,0.37166212]
[1641190588163,2.132947,3811.2,3810.5,0.37166212]
[1641190589163,2.00479,3811.2,3810.5,0.37166212]
[1641190590671,2.00479,3811.2,3810.5,0.7578]
[1641190591271,2.132947,3811.2,3810.5,0.7578]
[1641190593671,0.128157,3811.2,3810.5,0.7578]
[1641190594070,0.128157,3811.2,3810.4,0.75675729]
[1641190594271,0.128157,3811.2,3810.2,2.51745119]
[1641190595173,2.00479,3810.9,3810.2,2.51745119]
[1641190596576,2.00479,3810.9,3810.2,1.7742116]
[1641190597377,2.00479,3810.9,3810.8,1.18554743]
[1641190597576,2.234781,3810.9,3810.8,1.18554743]
[1641190597978,2.00479,3810.9,3810.8,1.18554743]
[1641190598180,2.00479,3810.9,3810.2,1.64755903]
[1641190598779,2.00479,3810.9,3810.1,7.48479]
[1641190604185,2.00479,3810.9,3810.1,6.17239]
[1641190605789,2.00479,3810.9,3810.2,0.37169224]
[1641190606193,1.4999,3810.7,3810.2,0.37169224]
[1641190606392,1.4999,3810.7,3809.8,2.21715537]
[1641190606993,2.38369819,3810.7,3810.5,0.8901278]
[1641190607192,2.38369819,3810.7,3809.7,0.74323959]
[1641190607193,12.71743412,3810.6,3809.7,0.74323959]
[1641190607392,2.00479,3810.0,3809.7,0.74323959]
[1641190607992,0.358148,3809.9,3809.6,1.2108952]
[1641190608994,0.358148,3809.9,3809.3,0.74344011]
[1641190609793,0.358148,3809.9,3809.8,1.1869726]
[1641190610196,2.00479,3810.0,3809.8,1.1869726]
[1641190610596,2.00479,3810.0,3809.1,2.00479]
[1641190611603,2.00479,3810.0,3809.1,4.22194537]
[1641190613800,2.00479,3810.0,3809.2,2.21715537]
[1641190614800,2.00479,3810.0,3809.1,2.00479]
[1641190614801,2.00479,3810.0,3809.9,0.88820353]
[1641190614999,2.234781,3810.0,3809.9,0.88820353]
[1641190616002,2.00479,3810.0,3809.9,0.96481253]
[1641190616403,2.234781,3810.0,3809.9,0.88820353]
[1641190616907,2.00479,3810.0,3809.9,0.96481253]
[1641190617403,2.00479,3810.0,3809.7,0.45131253]
[1641190617605,0.229991,3809.9,3809.7,0.45131253]
[1641190617805,0.229991,3809.9,3809.6,1.18427137]
[1641190620510,2.00479,3810.0,3809.6,1.18427137]
[1641190621712,2.00479,3810.0,3809.5,1.18427137]
[1641190622111,2.00479,3810.0,3809.1,1.87656137]
[1641190622511,2.00479,3810.0,3809.2,0.3717398]
[1641190627425,2.00479,3810.0,3808.8,4.9395519]
[1641190627627,2.00479,3809.4,3808.8,3.78119094]
[1641190628025,2.00479,3809.4,3808.8,2.00479]
[1641190628225,0.128157,3809.3,3808.8,2.00479]
[1641190633631,0.128157,3809.3,3808.7,1.77640094]
[1641190636934,0.128157,3809.3,3808.8,1.77640094]
[1641190637136,2.00479,3809.4,3808.8,2.34020094]
[1641190637636,2.00479,3809.4,3808.9,1.77640094]
[1641190638937,2.00479,3809.4,3809.0,1.77640094]
[1641190642739,2.00479,3809.4,3809.1,0.37175524]
[1641190642940,0.229991,3809.3,3809.1,0.37175524]
[1641190643340,2.00479,3809.4,3809.1,0.37175524]
[1641190643942,0.229991,3809.3,3809.1,0.37175524]
[1641190644243,2.00479,3809.4,3809.1,0.37175524]
[1641190644846,0.229991,3809.3,3809.1,0.37175524]
[1641190645143,2.00479,3809.4,3809.0,0.37175524]
[1641190645344,2.00479,3809.4,3809.2,0.37175524]
[1641190645945,2.00479,3809.4,3809.1,0.37175524]
[1641190646347,2.00479,3809.4,3809.0,0.37175524]
[1641190646747,2.00479,3809.4,3809.2,0.37175524]
[1641190646949,0.229991,3809.3,3809.2,0.37175524]
[1641190647149,0.229991,3809.3,3809.0,0.37175524]
[1641190647451,2.00479,3809.4,3809.0,0.37175524]
[1641190647650,2.00479,3809.4,3809.2,0.37175524]
[1641190648152,2.00479,3809.4,3808.9,0.37175524]
[1641190648351,2.00479,3809.4,3808.8,2.00479]
[1641190648853,2.00479,3809.4,3808.9,0.37175324]
[1641190652961,2.00479,3809.4,3808.8,0.37175324]
[1641190653361,2.00479,3809.4,3809.1,1.77640094]
[1641190653562,0.229991,3809.3,3809.1,1.77640094]
[1641190653762,2.00479,3809.2,3809.1,1.77640094]
[1641190653961,2.64489,3809.2,3809.1,1.77640094]
[1641190655262,2.64489,3809.2,3809.0,1.77640094]
[1641190655462,2.64489,3809.2,3809.1,0.37176942]
[1641190655664,2.64489,3809.2,3809.0,1.77640094]
[1641190655863,2.64489,3809.2,3808.9,0.46370094]
[1641190656463,0.229991,3809.1,3808.9,0.46370094]
[1641190656865,0.229991,3809.1,3808.6,6.22339043]
[1641190657674,0.229991,3809.1,3808.7,0.37180017]
[1641190657872,2.00479,3808.8,3808.7,0.37180017]
[1641190659073,2.00479,3809.2,3808.7,0.37180017]
[1641190664983,2.00479,3809.2,3808.7,2.15155288]
[1641190665788,2.00479,3809.2,3808.8,0.37180017]
[1641190665984,2.00479,3808.9,3808.4,2.21715537]
[1641190666186,0.128157,3808.8,3808.4,2.21715537]
[1641190666984,0.128157,3808.8,3808.5,2.21715537]
[1641190667186,0.229991,3808.7,3808.5,2.21715537]
[1641190667387,0.229991,3808.7,3808.2,2.95928586]
[1641190667388,1.4999,3808.6,3808.2,2.95928586]
[1641190667686,1.4999,3808.6,3808.2,1.64628586]
[1641190667886,0.8242153,3808.5,3808.2,1.64628586]
[1641190668089,0.229991,3808.4,3808.2,1.64628586]
[1641190668487,0.122356,3808.3,3807.6,2.00479]
[1641190671391,0.122356,3808.3,3806.9,7.92702545]
[1641190672093,2.00479,3808.2,3807.4,2.00479]
[1641190674696,2.00479,3808.2,3807.4,0.69159]
[1641190675396,2.00479,3808.2,3807.4,2.47322186]
[1641190677097,2.00479,3808.2,3807.4,0.69159]
[1641190677497,1.4999,3808.1,3807.3,1.78163186]
[1641190677697,13.32479,3808.2,3807.3,1.78163186]
[1641190677897,0.128157,3808.0,3807.3,1.78163186]
[1641190678098,2.00479,3807.4,3807.3,0.46813186]
[1641190678298,2.234781,3807.4,3807.3,0.46813186]
[1641190679299,2.234781,3807.4,3807.0,2.22703983]
[1641190679300,2.357137,3807.4,3807.0,2.22703983]
[1641190679499,2.357137,3807.4,3806.9,0.73377271]
[1641190679699,2.234781,3807.4,3806.8,2.22703983]
[1641190680801,2.749481,3807.4,3806.7,2.22703983]
[1641190681402,2.749481,3807.4,3806.7,0.91343983]
[1641190682203,2.00479,3807.0,3806.7,0.91343983]
[1641190682404,0.480504,3806.9,3806.1,4.97201273]
[1641190683005,0.358148,3806.9,3806.1,4.97201273]
[1641190683205,0.358148,3806.9,3806.2,0.37199681]
[1641190684909,0.358148,3806.9,3806.0,1.17209042]
[1641190685307,0.358148,3806.9,3806.1,0.3719941]
[1641190686309,2.00479,3806.2,3806.1,0.3719941]
[1641190688112,1.13489127,3806.2,3806.1,0.3719941]
[1641190688912,1.13489127,3806.2,3805.9,8.44722273]
[1641190692516,0.229991,3806.1,3805.9,8.44722273]
[1641190692716,0.128157,3806.1,3805.9,8.44722273]
[1641190693516,0.229991,3806.0,3805.9,2.96722273]
[1641190693917,0.229991,3806.0,3805.7,2.96722273]
[1641190695417,0.229991,3806.0,3805.5,2.96722273]
[1641190696219,0.229991,3806.0,3805.9,2.96722273]
[1641190696617,0.128157,3806.1,3805.9,2.96722273]
[1641190697717,0.229991,3806.0,3805.9,2.96722273]
[1641190699217,0.128157,3806.1,3805.9,2.96722273]
[1641190700219,0.229991,3806.0,3805.9,2.96722273]
[1641190701121,0.229991,3806.0,3805.8,2.96722273]
[1641190703222,0.13217592,3806.0,3805.6,1.65342273]
[1641190704924,0.13217592,3806.0,3805.3,4.43288003]
[1641190705126,0.13217592,3806.0,3805.5,3.69910732]
[1641190705826,0.13217592,3806.0,3805.3,3.69910732]
[1641190707730,0.13217592,3806.0,3805.3,2.38520732]
[1641190707931,0.13217592,3806.0,3805.3,0.078941]
[1641190709131,0.13217592,3806.0,3805.2,2.00479]
[1641190710032,0.13217592,3806.0,3805.8,2.23236451]
[1641190713336,0.13217592,3806.0,3805.7,2.23236451]
[1641190713536,0.13217592,3806.0,3805.9,1.78596835]
[1641190715038,0.13217592,3806.0,3805.7,2.23236451]
[1641190720343,0.208785,3805.9,3805.7,2.23236451]
[1641190720542,2.132947,3806.1,3805.7,2.23236451]
[1641190723644,2.132947,3806.1,3806.0,1.78601936]
[1641190723845,2.341732,3806.1,3806.0,1.78601936]
[1641190724045,2.00479,3806.1,3806.0,2.64173436]
[1641190724447,2.00479,3806.1,3806.0,0.855715]
[1641190724645,2.213575,3806.1,3806.0,0.7579]
[1641190724847,0.8860203,3806.3,3806.0,0.7579]
[1641190724848,0.8860203,3806.3,3806.0,0.855715]
[1641190725047,1.18107149,3806.5,3806.2,1.5]
[1641190725247,1.78051532,3807.1,3806.3,0.078941]
[1641190725448,1.78051532,3807.1,3806.5,0.78812118]
[1641190725948,2.21902114,3807.7,3807.0,1.5]
[1641190726147,3.70510911,3808.2,3807.0,14.94145687]
[1641190726347,3.70510911,3808.2,3807.5,0.78789937]
[1641190726549,3.62850911,3808.2,3807.5,0.78789937]
[1641190726752,5.63329911,3808.2,3807.5,0.78789937]
[1641190727247,5.63329911,3808.2,3807.6,0.078941]
[1641190727649,2.00479,3808.2,3807.6,0.078941]
[1641190729251,0.5578927,3808.1,3807.6,0.078941]
[1641190736867,0.5578927,3808.1,3807.6,1.8642785]
[1641190738678,0.5578927,3808.1,3807.7,1.7853375]
[1641190741773,0.5578927,3808.1,3807.8,1.7853375]
[1641190741972,0.208785,3808.0,3807.9,0.097815]
[1641190742175,0.5578927,3808.1,3807.8,1.7853375]
[1641190742371,2.00479,3808.2,3807.8,1.7853375]
[1641190745882,2.00479,3808.2,3807.7,3.00926575]
[1641190746078,2.00479,3808.2,3807.9,2.2317364]
[1641190746278,2.00479,3808.2,3808.0,0.097815]
[1641190747278,1.48498917,3809.0,3808.2,3.72868852]
[1641190747578,1.48498917,3809.0,3808.6,3.72931765]
[1641190747779,0.74387336,3809.4,3808.7,0.078941]
[1641190747780,1.48498917,3809.1,3808.7,0.078941]
[1641190748381,1.48498917,3809.1,3808.0,6.70765554]
[1641190749079,1.48498917,3809.1,3808.1,4.201073]
[1641190749080,0.55780358,3808.9,3808.1,4.201073]
[1641190749281,0.55780358,3808.9,3808.7,2.00479]
[1641190749481,0.55780358,3808.9,3808.8,0.097815]
[1641190750087,0.55780358,3809.0,3808.8,0.097815]
[1641190751487,0.208785,3808.9,3808.7,2.00479]
[1641190752286,0.55780358,3808.8,3808.7,2.00479]
[1641190752487,0.55780358,3808.8,3808.7,2.102605]
[1641190752488,0.76658858,3808.8,3808.7,2.102605]
[1641190752690,0.76658858,3808.8,3808.7,2.00479]
[1641190752888,0.55780358,3808.8,3808.7,2.00479]
[1641190753490,0.55780358,3808.8,3808.7,2.102605]
[1641190753890,0.55780358,3809.0,3808.7,2.102605]
[1641190754090,0.208785,3808.9,3808.7,2.00479]
[1641190756000,0.208785,3808.9,3808.7,2.102605]
[1641190756597,0.208785,3808.9,3808.7,2.00479]
[1641190756998,0.208785,3808.9,3808.7,2.102605]
[1641190757199,0.208785,3808.9,3808.7,2.00479]
[1641190758299,0.128157,3809.3,3808.8,0.097815]
[1641190759299,0.128157,3809.3,3808.7,2.00479]
[1641190759799,2.00479,3809.6,3808.7,2.00479]
[1641190761301,0.128157,3809.5,3808.7,2.00479]
[1641190764805,2.00479,3809.6,3808.7,2.00479]
[1641190765406,29.449856,3809.8,3808.5,0.078941]
[1641190766006,2.00479,3809.6,3808.7,2.00479]
[1641190766507,0.128157,3809.5,3808.7,0.69199]
[1641190767307,2.00479,3809.6,3808.7,0.69199]
[1641190768707,0.128157,3809.5,3808.7,0.69199]
[1641190770110,0.128157,3809.5,3808.5,0.078941]
[1641190770510,2.00479,3809.4,3808.5,2.083731]
[1641190773319,2.00479,3809.4,3808.6,1.08316099]
[1641190776519,0.128157,3809.3,3808.5,2.00479]
[1641190776720,1.4999,3808.8,3808.1,0.88465276]
[1641190776918,1.622256,3808.8,3808.1,0.88465276]
[1641190777121,1.622256,3808.8,3807.6,29.07505985]
[1641190777122,1.622256,3808.8,3807.7,0.88465276]
[1641190777524,0.122356,3808.8,3808.0,0.078941]
[1641190777721,1.26491779,3808.9,3808.0,0.078941]
[1641190778723,2.00479,3808.4,3808.0,0.078941]
[1641190778921,2.82219,3808.4,3808.0,0.078941]
[1641190779124,2.82219,3808.4,3807.6,27.84100085]
[1641190779628,2.82219,3808.4,3807.6,1.38085985]
[1641190783235,3.8347295,3808.4,3807.8,2.2317364]
[1641190783434,3.8347295,3808.4,3808.1,1.78497146]
[1641190783634,0.208785,3808.3,3808.1,1.78497146]
[1641190784035,3.7065725,3808.4,3808.2,0.097815]
[1641190784239,2.00479,3808.4,3808.2,0.097815]
[1641190784637,0.208785,3808.3,3808.1,1.78497146]
[1641190784937,2.00479,3808.4,3808.2,0.097815]
[1641190785136,2.00479,3808.4,3808.1,1.78497146]
[1641190785436,2.00479,3808.4,3807.9,1.78497146]
[1641190787741,2.00479,3808.4,3808.3,1.18835349]
[1641190787939,2.213575,3808.4,3808.3,1.18835349]
[1641190788140,2.213575,3808.4,3807.7,1.78497146]
[1641190788340,2.00479,3808.4,3807.7,1.78497146]
[1641190788543,2.00479,3808.4,3807.8,1.78497146]
[1641190788944,2.00479,3808.4,3807.9,0.37190324]
[1641190790545,0.128157,3808.3,3807.9,0.37190324]
[1641190790946,0.128157,3808.3,3807.9,1.78497146]
[1641190792148,0.128157,3808.3,3807.8,1.78497146]
[1641190792548,0.128157,3808.3,3807.9,0.37191568]
[1641190793048,0.128157,3808.3,3807.8,1.78497146]
[1641190793248,0.944357,3808.3,3807.8,1.78497146]
[1641190793448,0.944357,3808.3,3807.9,0.37191406]
[1641190794148,0.944357,3808.3,3807.8,0.37191406]
[1641190794348,0.8162,3808.3,3807.7,1.78497146]
[1641190794851,0.8162,3808.3,3807.9,0.37191658]
[1641190795048,0.8162,3808.3,3807.8,0.37191658]
[1641190795648,0.8162,3808.3,3807.7,1.78497146]
[1641190795850,0.8162,3808.3,3807.9,0.37191065]
[1641190796148,0.8162,3808.3,3807.8,0.37191065]
[1641190796349,0.8162,3808.3,3807.7,1.78497146]
[1641190796549,0.8162,3808.3,3807.9,0.37191062]
[1641190796951,0.8162,3808.3,3807.8,0.37191062]
[1641190797153,0.8162,3808.3,3808.0,0.37191062]
[1641190797352,0.8162,3808.3,3808.1,0.097815]
[1641190797752,0.8162,3808.3,3807.8,1.78497146]
[1641190798052,0.8162,3808.3,3808.0,0.37190924]
[1641190798251,2.00479,3808.4,3808.1,0.097815]
[1641190799452,0.208785,3808.3,3807.9,0.3719091]
[1641190799654,0.208785,3808.3,3807.8,1.78497146]
[1641190799852,0.208785,3808.3,3808.0,0.37190874]
[1641190800053,0.208785,3808.3,3807.9,0.37190874]
[1641190800858,2.00479,3808.4,3807.9,0.37190874]
[1641190803462,2.00479,3808.4,3807.9,2.1568802]
[1641190803762,2.00479,3808.4,3808.0,0.37190874]
[1641190805666,2.00479,3808.4,3807.9,2.1568802]
[1641190806065,2.00479,3808.4,3808.1,0.37190874]
[1641190806365,2.00479,3808.4,3808.2,0.097815]
[1641190808267,0.8843825,3808.7,3808.2,0.097815]
[1641190809169,0.8843825,3808.7,3808.2,0.46975614]
[1641190809370,2.00479,3808.4,3808.2,0.46975614]
[1641190809569,2.00479,3808.4,3808.2,0.097815]
[1641190810572,2.213575,3808.4,3808.2,0.37192599]
[1641190810773,2.213575,3808.4,3808.1,0.37192599]
[1641190810972,2.213575,3808.4,3808.0,1.78497146]
[1641190811372,2.213575,3808.4,3808.1,0.37193422]
[1641190812171,0.208785,3808.4,3808.1,0.37193422]
[1641190812375,1.0125395,3808.7,3808.2,0.097815]
[1641190812774,1.0125395,3808.7,3808.0,1.78497146]